fUST/lending_fUST_20250225
["ID","MTS","AMOUNT","RATE_DAILY","PERIOD"]
[354396097,1740469844342,-500.0,0.00066849,120]
[354396098,1740469844352,-500.0,0.00066849,120]
[354396099,1740469844362,-500.17,0.00066849,120]
[354396100,1740469844372,-500.0,0.00066849,120]
[354396101,1740469844381,-500.0,0.00066849,120]
[354396102,1740469844392,-172.78,0.00066849,120]
[354396103,1740469844402,-500.0,0.00066849,3]
[354396104,1740469844412,-500.0,0.00066849,120]
[354396105,1740469844422,-500.0,0.00066849,120]
[354396106,1740469844434,-500.0,0.00066849,120]
[354396107,1740469844455,-1262.5,0.00066849,120]
[354396108,1740469844465,-500.0,0.00066849,120]
[354396109,1740469844476,-612.16,0.00066849,120]
[354396110,1740469844487,-500.0,0.00066849,120]
[354396111,1740469844499,-500.0,0.00066849,120]
[354396112,1740469844510,-1262.96,0.00066849,120]
[354396113,1740469844521,-500.0,0.00066849,120]
[354396114,1740469844532,-1400.64,0.00066849,120]
[354396115,1740469844543,-500.0,0.00066849,120]
[354396116,1740469844553,-500.0,0.00066849,120]
[354396117,1740469844565,-10460.21,0.00066849,7]
[354396118,1740469844576,-500.0,0.00066849,120]
[354396119,1740469844587,-723.73,0.00066849,120]
[354396120,1740469844598,-500.0,0.00066849,120]
[354396121,1740469844609,-500.0,0.00066849,120]
[354396122,1740469844620,-500.0,0.00066849,120]
[354396123,1740469844631,-500.0,0.00066849,120]
[354396124,1740469844642,-6269.2,0.00066849,120]
[354396125,1740469844652,-500.0,0.00066849,120]
[354396126,1740469844664,-580.09,0.00066849,120]
[354396127,1740469844675,-454.49014067,0.00066849,120]
[354396128,1740469844686,-922.43,0.00066849,120]
[354396129,1740469844698,-500.0,0.00066849,120]
[354396130,1740469844710,-20663.98,0.00066849,120]
[354396131,1740469844721,-500.0,0.00066929,15]
[354396132,1740469844732,-985.90347336,0.00066971,120]
[354396133,1740469844743,-7256.49335801,0.00067113,6]
[354396134,1740469844754,-500.0,0.00067123,120]
[354396135,1740469844764,-510.19,0.00067123,120]
[354396136,1740469844775,-500.0,0.00067123,120]
[354396137,1740469844785,-500.0,0.00067123,120]
[354396138,1740469844795,-500.0,0.00067123,120]
[354396139,1740469844807,-500.0,0.00067123,120]
[354396140,1740469844818,-500.0,0.00067123,120]
[354396141,1740469844829,-500.0,0.00067123,120]
[354396142,1740469844839,-500.0,0.00067123,120]
[354396143,1740469844849,-500.0,0.00067123,3]
[354396144,1740469844860,-500.0,0.00067123,120]
[354396145,1740469844871,-500.0,0.00067123,120]
[354396146,1740469844881,-503.65261719,0.00067123,120]
[354396147,1740469844892,-1262.5,0.00067123,120]
[354396148,1740469844903,-500.0,0.00067123,120]
[354396149,1740469844913,-612.16,0.00067123,120]
[354396150,1740469844924,-413.01,0.00067123,120]
[354396151,1740469844935,-500.0,0.00067123,120]
[354396152,1740469844945,-1262.96,0.00067123,120]
[354396153,1740469844955,-595.50096773,0.00067123,120]
[354396154,1740469844967,-1400.64,0.00067123,120]
[354396155,1740469844978,-500.0,0.00067123,120]
[354396156,1740469844990,-500.0,0.00067123,120]
[354396157,1740469845001,-10460.21,0.00067123,7]
[354396158,1740469845012,-182.30818828,0.00067123,120]
[354396159,1740469845024,-723.73,0.00067123,120]
[354396160,1740469845034,-561.15596187,0.00067123,120]
[354396161,1740469845045,-191.92,0.00067123,120]
[354396162,1740469845056,-500.0,0.00067123,120]
[354396163,1740469845066,-500.0,0.00067123,120]
[354396164,1740469845078,-6269.2,0.00067123,120]
[354396165,1740469845089,-500.0,0.00067123,120]
[354396166,1740469845107,-922.43,0.00067123,120]
[354396167,1740469845122,-500.0,0.00067123,120]
[354396168,1740469845137,-20663.98,0.00067123,120]
[354396169,1740469845151,-5903.68,0.000672,30]
[354396170,1740469845166,-7256.49335801,0.00067387,6]
[354396171,1740469845183,-500.0,0.00067397,120]
[354396172,1740469845210,-510.19,0.00067397,120]
[354396173,1740469845223,-500.0,0.00067397,120]
[354396174,1740469845238,-247.75323533,0.00067397,120]
[354396175,1740469845250,-500.0,0.00067397,120]
[354396176,1740469845263,-499.0,0.00067397,120]
[354396177,1740469845276,-500.0,0.00067397,120]
[354396178,1740469845288,-500.0,0.00067397,120]
[354396179,1740469845301,-500.0,0.00067397,120]
[354396180,1740469845314,-500.0,0.00067397,3]
[354396181,1740469845326,-246.075767,0.00067397,120]
[354396182,1740469845340,-500.0,0.00067397,120]
[354396183,1740469845353,-1262.5,0.00067397,120]
[354396184,1740469845367,-500.0,0.00067397,120]
[354396185,1740469845381,-612.16,0.00067397,120]
[354396186,1740469845395,-455.15731939,0.00067397,120]
[354396187,1740469845406,-1262.96,0.00067397,120]
[354396188,1740469845420,-1400.64,0.00067397,120]
[354396189,1740469845438,-500.0,0.00067397,120]
[354396190,1740469845453,-507.18563464,0.00067397,120]
[354396191,1740469845467,-10460.21,0.00067397,7]
[354396192,1740469845481,-723.73,0.00067397,120]
[354396193,1740469845494,-500.0,0.00067397,120]
[354396194,1740469845507,-500.0,0.00067397,120]
[354396195,1740469845520,-6269.2,0.00067397,120]
[354396196,1740469845531,-500.0,0.00067397,120]
[354396197,1740469845542,-922.43,0.00067397,120]
[354396198,1740469845555,-500.0,0.00067397,120]
[354396199,1740469845567,-20663.98,0.00067397,120]
[354396200,1740469845580,-985.90347336,0.00067556,120]
[354396203,1740469845593,-152.35481227,0.00067572,15]
[354396206,1740469845605,-500.0,0.00067671,120]
[354396209,1740469845618,-510.19,0.00067671,120]
[354396211,1740469845632,-500.0,0.00067671,120]
[354396213,1740469845645,-500.0,0.00067671,120]
[354396216,1740469845657,-500.0,0.00067671,120]
[354396218,1740469845671,-500.0,0.00067671,120]
[354396220,1740469845697,-334.02,0.00067671,120]
[354396222,1740469845712,-434.25776103,0.00067671,3]
[354396224,1740469845725,-641.29532137,0.00067671,120]
[354396227,1740469845738,-1262.5,0.00067671,120]
[354396229,1740469845749,-481.06056,0.00067671,120]
[354396231,1740469845761,-612.16,0.00067671,120]
[354396233,1740469845772,-1262.96,0.00067671,120]
[354396235,1740469845783,-1400.64,0.00067671,120]
[354396237,1740469845795,-328.87,0.00067671,120]
[354396239,1740469845808,-10460.21,0.00067671,7]
[354396241,1740469845821,-723.73,0.00067671,120]
[354396244,1740469845836,-500.0,0.00067671,120]
[354396246,1740469845848,-500.0,0.00067671,120]
[354396248,1740469845862,-6269.2,0.00067671,120]
[354396250,1740469845873,-500.0,0.00067671,120]
[354396253,1740469845885,-922.43,0.00067671,120]
[354396255,1740469845897,-500.0,0.00067671,120]
[354396257,1740469845909,-20663.98,0.00067671,120]
[354396260,1740469845932,-500.0,0.00067945,120]
[354396268,1740469845946,-510.19,0.00067945,120]
[354396270,1740469845959,-500.0,0.00067945,120]
[354396274,1740469845972,-223.55227565,0.00067945,120]
[354396281,1740469845984,-500.0,0.00067945,120]
[354396286,1740469845997,-500.0,0.00067945,120]
[354396290,1740469846009,-1262.5,0.00067945,120]
[354396293,1740469846024,-612.16,0.00067945,120]
[354396296,1740469846037,-1262.96,0.00067945,120]
[354396300,1740469846049,-1400.64,0.00067945,120]
[354396303,1740469846061,-10460.21,0.00067945,7]
[354396307,1740469846073,-723.73,0.00067945,120]
[354396310,1740469846086,-500.0,0.00067945,120]
[354396311,1740469846100,-500.0,0.00067945,120]
[354396312,1740469846112,-6269.2,0.00067945,120]
[354396313,1740469846125,-500.0,0.00067945,120]
[354396315,1740469846138,-922.43,0.00067945,120]
[354396317,1740469846151,-500.0,0.00067945,120]
[354396319,1740469846163,-20663.98,0.00067945,120]
[354396321,1740469846175,-500.0,0.00067976,15]
[354396323,1740469846186,-306.80290596,0.00067976,15]
[354396325,1740469846210,-83245.96767312,0.00068,120]
[354396327,1740469846221,-985.90347336,0.00068142,120]
[354396329,1740469846232,-501.99086354,0.00068152,15]
[354396331,1740469846247,-534.73184318,0.00068219,120]
[354396335,1740469846259,-510.19,0.00068219,120]
[354396340,1740469846272,-500.0,0.00068219,120]
[354396343,1740469846284,-500.0,0.00068219,120]
[354396349,1740469846296,-500.0,0.00068219,120]
[354396355,1740469846307,-1262.5,0.00068219,120]
[354396360,1740469846321,-612.16,0.00068219,120]
[354396367,1740469846332,-1262.96,0.00068219,120]
[354396374,1740469846345,-1400.64,0.00068219,120]
[354396377,1740469846357,-10460.21,0.00068219,7]
[354396380,1740469846369,-723.73,0.00068219,120]
[354396382,1740469846381,-500.0,0.00068219,120]
[354396385,1740469846395,-500.0,0.00068219,120]
[354396387,1740469846410,-6269.2,0.00068219,120]
[354396389,1740469846422,-500.0,0.00068219,120]
[354396391,1740469846434,-922.43,0.00068219,120]
[354396393,1740469846450,-500.0,0.00068219,120]
[354396396,1740469846462,-510.19,0.00068493,120]
[354396398,1740469846475,-607.42395958,0.00068493,120]
[354396400,1740469846488,-479.77919506,0.00068493,120]
[354396402,1740469846501,-500.0,0.00068493,120]
[354396405,1740469846512,-1262.5,0.00068493,120]
[354396407,1740469846525,-612.16,0.00068493,120]
[354396409,1740469846536,-1262.96,0.00068493,120]
[354396425,1740469846549,-1400.64,0.00068493,120]
[354396428,1740469846676,-10460.21,0.00068493,7]
[354396430,1740469846686,-723.73,0.00068493,120]
[354396432,1740469846704,-155.03,0.00068493,120]
[354396434,1740469846729,-500.0,0.00068493,120]
[354396436,1740469846740,-6269.2,0.00068493,120]
[354396438,1740469846750,-500.0,0.00068493,120]
[354396440,1740469846763,-922.43,0.00068493,120]
[354396443,1740469846773,-500.0,0.00068493,120]
[354396445,1740469846785,-985.90347336,0.00068728,120]
[354396447,1740469846797,-510.19,0.00068767,120]
[354396449,1740469846808,-507.2605762,0.00068767,120]
[354396451,1740469846819,-1262.5,0.00068767,120]
[354396453,1740469846830,-612.16,0.00068767,120]
[354396455,1740469846840,-1262.96,0.00068767,120]
[354396457,1740469846851,-1400.64,0.00068767,120]
[354396459,1740469846861,-10460.21,0.00068767,7]
[354396461,1740469846873,-723.73,0.00068767,120]
[354396463,1740469846885,-502.8991,0.00068767,120]
[354396465,1740469846897,-6269.2,0.00068767,120]
[354396467,1740469846907,-500.0,0.00068767,120]
[354396469,1740469846917,-922.43,0.00068767,120]
[354396471,1740469846928,-500.0,0.00068767,120]
[354396472,1740469846938,-510.19,0.00069041,120]
[354396474,1740469846949,-1262.5,0.00069041,120]
[354396475,1740469846959,-612.16,0.00069041,120]
[354396476,1740469846969,-1262.96,0.00069041,120]
[354396477,1740469846980,-1400.64,0.00069041,120]
[354396478,1740469846991,-10460.21,0.00069041,7]
[354396479,1740469847001,-723.73,0.00069041,120]
[354396480,1740469847012,-6269.2,0.00069041,120]
[354396481,1740469847022,-500.0,0.00069041,120]
[354396482,1740469847032,-922.43,0.00069041,120]
[354396483,1740469847042,-500.0,0.00069041,120]
[354396484,1740469847052,-1895.75,0.000691,60]
[354396485,1740469847063,-215843.07,0.000691,30]
[354396486,1740469847072,-3325.19,0.000693,30]
[354396487,1740469847082,-985.90347336,0.00069314,120]
[354396488,1740469847092,-510.19,0.00069315,120]
[354396489,1740469847102,-1262.5,0.00069315,120]
[354396490,1740469847113,-612.16,0.00069315,120]
[354396491,1740469847123,-1262.96,0.00069315,120]
[354396492,1740469847133,-1400.64,0.00069315,120]
[354396493,1740469847142,-10460.21,0.00069315,7]
[354396494,1740469847153,-723.73,0.00069315,120]
[354396495,1740469847163,-6269.2,0.00069315,120]
[354396496,1740469847173,-500.0,0.00069315,120]
[354396498,1740469847183,-922.43,0.00069315,120]
[354396500,1740469847193,-500.0,0.00069315,120]
[354396502,1740469847208,-2630.66762331,0.00069489,2]
[354396503,1740469847232,-510.19,0.00069589,120]
[354396505,1740469847243,-1262.5,0.00069589,120]
[354396507,1740469847255,-612.16,0.00069589,120]
[354396510,1740469847265,-1262.96,0.00069589,120]
[354396512,1740469847276,-1400.64,0.00069589,120]
[354396514,1740469847288,-10460.21,0.00069589,7]
[354396516,1740469847299,-723.73,0.00069589,120]
[354396519,1740469847311,-6269.2,0.00069589,120]
[354396520,1740469847322,-500.0,0.00069589,120]
[354396522,1740469847332,-922.43,0.00069589,120]
[354396524,1740469847343,-500.0,0.00069589,120]
[354396526,1740469847354,-510.19,0.00069863,120]
[354396528,1740469847365,-1262.5,0.00069863,120]
[354396530,1740469847376,-612.16,0.00069863,120]
[354396532,1740469847386,-1262.96,0.00069863,120]
[354396534,1740469847399,-1400.64,0.00069863,120]
[354396536,1740469847410,-10460.21,0.00069863,7]
[354396538,1740469847421,-723.73,0.00069863,120]
[354396540,1740469847433,-6269.2,0.00069863,120]
[354396541,1740469847443,-500.0,0.00069863,120]
[354396542,1740469847454,-922.43,0.00069863,120]
[354396543,1740469847464,-515.07519177,0.00069863,120]
[354396544,1740469847474,-985.90347336,0.00069899,120]
[354396546,1740469847484,-1000.0,0.0007,120]
[354396548,1740469847496,-510.19,0.00070136,120]
[354396549,1740469847508,-1262.5,0.00070136,120]
[354396551,1740469847519,-612.16,0.00070136,120]
[354396553,1740469847529,-1262.96,0.00070136,120]
[354396554,1740469847539,-1400.64,0.00070136,120]
[354396556,1740469847551,-10460.21,0.00070136,7]
[354396558,1740469847563,-723.73,0.00070136,120]
[354396560,1740469847573,-6269.2,0.00070136,120]
[354396561,1740469847583,-500.0,0.00070136,120]
[354396562,1740469847593,-922.43,0.00070136,120]
[354396563,1740469847603,-510.19,0.0007041,120]
[354396564,1740469847613,-1262.5,0.0007041,120]
[354396565,1740469847623,-612.16,0.0007041,120]
[354396566,1740469847633,-1262.96,0.0007041,120]
[354396567,1740469847644,-1400.64,0.0007041,120]
[354396568,1740469847655,-10460.21,0.0007041,7]
[354396569,1740469847666,-723.73,0.0007041,120]
[354396570,1740469847676,-6269.2,0.0007041,120]
[354396571,1740469847688,-500.0,0.0007041,120]
[354396572,1740469847699,-922.43,0.0007041,120]
[354396573,1740469847709,-985.90347336,0.00070485,120]
[354396574,1740469847734,-510.19,0.00070684,120]
[354396575,1740469847745,-500.0,0.00070684,64]
[354396576,1740469847757,-1262.5,0.00070684,120]
[354396577,1740469847767,-612.16,0.00070684,120]
[354396578,1740469847777,-1262.96,0.00070684,120]
[354396579,1740469847787,-1400.64,0.00070684,120]
[354396580,1740469847797,-150.62,0.00070684,120]
[354396581,1740469847808,-10460.21,0.00070684,7]
[354396582,1740469847819,-723.73,0.00070684,120]
[354396583,1740469847830,-6269.2,0.00070684,120]
[354396584,1740469847840,-500.0,0.00070684,120]
[354396585,1740469847850,-922.43,0.00070684,120]
[354396586,1740469847860,-500.0,0.00070958,64]
[354396587,1740469847871,-150.62,0.00070958,120]
[354396588,1740469847882,-510.19,0.00070958,120]
[354396589,1740469847893,-1262.5,0.00070958,120]
[354396590,1740469847904,-612.16,0.00070958,120]
[354396591,1740469847914,-1262.96,0.00070958,120]
[354396592,1740469847924,-1400.64,0.00070958,120]
[354396593,1740469847934,-10460.21,0.00070958,7]
[354396594,1740469847944,-723.73,0.00070958,120]
[354396595,1740469847955,-6269.2,0.00070958,120]
[354396596,1740469847965,-500.0,0.00070958,120]
[354396597,1740469847975,-922.43,0.00070958,120]
[354396598,1740469847985,-500.0,0.00070973,15]
[354396599,1740469847995,-500.0,0.00070973,15]
[354396600,1740469848005,-500.0,0.00070973,14]
[354396601,1740469848016,-422.18910731,0.00070973,15]
[354396602,1740469848026,-500.0,0.00070973,15]
[354396603,1740469848037,-500.0,0.00070973,15]
[354396604,1740469848047,-160.3474055,0.00070999,90]
[354396605,1740469848057,-164561.57613666,0.00071,120]
[354396606,1740469848067,-20165.0,0.00071,120]
[354396607,1740469848077,-3000.0,0.00071,120]
[354396608,1740469848086,-2614.22,0.00071,30]
[354396609,1740469848097,-985.90347336,0.00071071,120]
[354396610,1740469848107,-5903.68,0.000711,30]
[354396611,1740469848117,-914.9566,0.00071232,64]
[354396612,1740469848128,-150.62,0.00071232,120]
[354396613,1740469848139,-510.19,0.00071232,120]
[354396614,1740469848151,-1262.5,0.00071232,120]
[354396615,1740469848162,-612.16,0.00071232,120]
[354396616,1740469848174,-1262.96,0.00071232,120]
[354396617,1740469848184,-1400.64,0.00071232,120]
[354396618,1740469848195,-10460.21,0.00071232,7]
[354396619,1740469848206,-723.73,0.00071232,120]
[354396620,1740469848225,-6269.2,0.00071232,120]
[354396621,1740469848245,-500.0,0.00071232,120]
[354396622,1740469848255,-922.43,0.00071232,120]
[354396623,1740469848266,-150.62,0.00071506,120]
[354396624,1740469848277,-510.19,0.00071506,120]
[354396625,1740469848289,-1262.5,0.00071506,120]
[354396626,1740469848299,-612.16,0.00071506,120]
[354396627,1740469848309,-1262.96,0.00071506,120]
[354396628,1740469848319,-1400.64,0.00071506,120]
[354396629,1740469848330,-10460.21,0.00071506,7]
[354396630,1740469848340,-723.73,0.00071506,120]
[354396631,1740469848351,-6269.2,0.00071506,120]
[354396632,1740469848362,-500.0,0.00071506,120]
[354396633,1740469848372,-922.43,0.00071506,120]
[354396634,1740469848383,-597.46128311,0.00071521,15]
[354396635,1740469848396,-500.0,0.00071521,15]
[354396636,1740469848411,-1000.0,0.00071521,14]
[354396637,1740469848423,-1000.0,0.00071521,15]
[354396638,1740469848434,-504.0,0.00071521,15]
[354396639,1740469848446,-985.90347336,0.00071657,120]
[354396640,1740469848457,-150.62,0.0007178,120]
[354396641,1740469848468,-510.19,0.0007178,120]
[354396642,1740469848481,-150.62,0.0007178,120]
[354396643,1740469848492,-150.62,0.0007178,120]
[354396644,1740469848503,-198.76,0.0007178,120]
[354396645,1740469848515,-1262.5,0.0007178,120]
[354396646,1740469848526,-612.16,0.0007178,120]
[354396647,1740469848536,-1262.96,0.0007178,120]
[354396648,1740469848547,-1400.64,0.0007178,120]
[354396649,1740469848558,-10460.21,0.0007178,7]
[354396650,1740469848569,-723.73,0.0007178,120]
[354396651,1740469848580,-6269.2,0.0007178,120]
[354396652,1740469848591,-500.0,0.0007178,120]
[354396653,1740469848601,-922.43,0.0007178,120]
[354396654,1740469848611,-246.9,0.00072054,120]
[354396655,1740469848622,-510.20129005,0.00072054,120]
[354396656,1740469848633,-1262.69467801,0.00072054,120]
[354396657,1740469848643,-612.23877103,0.00072054,120]
[354396658,1740469848653,-1263.02771868,0.00072054,120]
[354396659,1740469848664,-1400.68376773,0.00072054,120]
[354396660,1740469848675,-10460.25195754,0.00072054,7]
[354396661,1740469848685,-723.925,0.00072054,120]
[354396662,1740469848696,-6269.4,0.00072054,120]
[354396663,1740469848706,-170.60273372,0.00072054,120]
[354396664,1740469848716,-922.5294456,0.00072054,120]
[354396665,1740469848745,-985.90347336,0.00072242,120]
[354396666,1740469848757,-1500.0,0.00072522,14]
[354396667,1740469848767,-500.0,0.00072522,15]
[354396668,1740469848778,-985.90347336,0.00072828,120]
[354396669,1740469848789,-985.90347336,0.00073414,120]
[354396670,1740469848800,-1000.0,0.00073702,60]
[354396671,1740469848811,-1000.0,0.00073727,60]
[354396672,1740469848822,-2000.0,0.0007382,14]
[354396673,1740469848835,-1000.0,0.00073929,60]
[354396674,1740469848847,-500.0,0.00073972,120]
[354396675,1740469848858,-500.0,0.00073972,120]
[354396676,1740469848869,-500.0,0.00073972,120]
[354396677,1740469848880,-500.0,0.00073972,120]
[354396678,1740469848890,-500.0,0.00073972,120]
[354396679,1740469848900,-500.0,0.00073972,120]
[354396680,1740469848911,-500.0,0.00073972,120]
[354396681,1740469848922,-500.0,0.00073972,120]
[354396682,1740469848933,-507.82100001,0.00073972,120]
[354396683,1740469848944,-985.90347336,0.00074,120]
[354396684,1740469848955,-1944.87970854,0.00074,120]
[354396685,1740469848965,-985.90347336,0.00074585,120]
[354396686,1740469848976,-985.90347336,0.00075171,120]
[354396687,1740469848988,-2500.0,0.00075356,14]
[354396688,1740469848999,-985.90347336,0.00075757,120]
[354396689,1740469849009,-500.0,0.00075972,120]
[354396690,1740469849019,-500.0,0.00075972,120]
[354396691,1740469849030,-500.0,0.00075972,120]
[354396692,1740469849041,-1000.0,0.00075999,120]
[354396693,1740469849051,-985.90347336,0.00076343,120]
[354396694,1740469849061,-13643.578554,0.00076353,120]
[354396695,1740469849072,-985.90347336,0.00076929,120]
[354396696,1740469849083,-3000.0,0.00077099,14]
[354396697,1740469849095,-985.90347336,0.00077514,120]
[354396698,1740469849106,-5000.0,0.000778,120]
[354396699,1740469849116,-1603.46682559,0.000778,120]
[354396700,1740469849126,-3325.19,0.000778,30]
[354396701,1740469849136,-215843.07,0.000778,30]
[354396702,1740469849147,-20997.56152525,0.0007788,120]
[354396703,1740469849157,-559871.2890209,0.000779,30]
[354396704,1740469849168,-1895.75,0.000779,60]
[354396705,1740469849178,-151.0,0.000779,120]
[354396706,1740469849188,-151.0,0.000779,120]
[354396707,1740469849198,-151.0,0.000779,120]
[354396708,1740469849208,-75733.2525357,0.000781,120]
[354396709,1740469849269,-45063.71941339,0.000781,120]
[354396710,1740469849285,-2839.56265521,0.000781,120]
[354396711,1740469849298,-69952.4653957,0.000781,120]
[354396712,1740469849310,-985.9,0.000781,120]
[354396713,1740469849320,-367.175,0.0007818,120]
[354396714,1740469849330,-500.0,0.0007819,120]
[354396715,1740469849341,-500.0,0.00078191,120]
[354396716,1740469849352,-854314.85699418,0.000782,30]
[354396717,1740469849407,-2589.48252104,0.00068219,120]
[354396718,1740469849420,-4489.3901843,0.00068219,120]
[354396719,1740469849434,-13585.10729466,0.00068219,120]
[354396720,1740469849544,-613348.62532578,0.000782,30]
[354396721,1740469849556,-66787.80648815,0.000782,30]
[354396722,1740469849568,-1781.03438778,0.000782,30]
[354396723,1740469849581,-894.01433771,0.000782,30]
[354396724,1740469849593,-39130.77470969,0.000782,30]
[354396725,1740469849604,-151.0,0.000782,120]
[354396726,1740469849615,-781.713944,0.000782,120]
[354396727,1740469849625,-781.713944,0.000782,120]
[354396728,1740469849635,-186.950704,0.000782,120]
[354396729,1740469849644,-151.0,0.000782,120]
[354396730,1740469849655,-151.0,0.000782,120]
[354396731,1740469849668,-390.41,0.000789,2]
[354396732,1740469849678,-1000.0,0.00079,120]
[354396733,1740469849688,-3500.0,0.00079026,14]
[354396734,1740469849698,-551.59434589,0.0008,120]
[354396735,1740469849707,-500.0,0.0008,120]
[354396736,1740469849717,-500.0,0.00080082,120]
[354396737,1740469849736,-500.0,0.00081071,120]
[354396738,1740469849748,-2507.57362244,0.00081121,14]
[354396739,1740469849759,-2908.99,0.00082191,120]
[354396740,1740469849768,-2908.99,0.00082191,120]
[354396741,1740469849778,-2908.99,0.00082191,120]
[354396742,1740469849788,-2908.99,0.00082191,120]
[354396743,1740469849798,-2908.99,0.00082191,120]
[354396744,1740469849808,-2908.99,0.00082191,120]
[354396745,1740469849818,-2908.99,0.00082191,120]
[354396746,1740469849828,-2908.99,0.00082191,120]
[354396747,1740469849838,-2908.99,0.00082191,120]
[354396748,1740469849848,-2908.99,0.00082191,120]
[354396749,1740469849858,-2908.99,0.00082191,120]
[354396750,1740469849869,-2908.99,0.00082191,120]
[354396751,1740469849878,-2908.99,0.00082191,120]
[354396752,1740469849888,-2908.99,0.00082191,120]
[354396753,1740469849899,-2908.99,0.00082191,120]
[354396754,1740469849909,-2908.99,0.00082191,120]
[354396755,1740469849919,-2908.99,0.00082191,120]
[354396756,1740469849929,-2908.99,0.00082191,120]
[354396757,1740469849939,-2908.99,0.00082191,120]
[354396758,1740469849949,-2908.99,0.00082191,120]
[354396759,1740469849959,-2908.99,0.00082191,120]
[354396760,1740469849971,-2908.99,0.00082191,120]
[354396761,1740469849985,-2908.99,0.00082191,120]
[354396762,1740469849995,-2909.013338,0.00082191,120]
[354396763,1740469850006,-2614.22,0.000828,60]
[354396764,1740469850017,-1171.24,0.000828,7]
[354396765,1740469850027,-500.75365497,0.00082821,120]
[354396766,1740469850036,-500.0,0.0008641,120]
[354396767,1740469850047,-976.04,0.000869,14]
[354396768,1740469850056,-1000.0,0.00088,120]
[354396769,1740469850066,-3325.19,0.000884,60]
[354396770,1740469850076,-500.0,0.00089,120]
[354396771,1740469850085,-48495.17127435,0.000924,30]
[354396772,1740469850102,-434.56,0.0006449,10]
[354396773,1740469850113,-5810.22167094,0.000924,30]
[354396774,1740469850181,-22332.50000001,0.000924,30]
[354396775,1740469850193,-356.2,0.000924,30]
[354396776,1740469850222,-249.99370199,0.0006449,30]
[354396777,1740469850236,-307.90629801,0.0006449,30]
[354396778,1740469850247,-556.97036397,0.00065753,120]
[354396779,1740469850257,-12060.06587483,0.00068493,120]
[354396780,1740469850268,-1084.91819496,0.00068493,120]
[354396781,1740469850280,-299.8619712,0.00068493,120]
[354396782,1740469850292,-7219.13395901,0.00068493,120]
[354396783,1740469850302,-138848.9770547,0.000924,30]
[354396784,1740469850311,-1000.0,0.00094,120]
[354396785,1740469850322,-1895.75,0.00094,60]
[354396786,1740469850332,-3723.97,0.000945,120]
[354396787,1740469850342,-500.0,0.0009463,120]
[354396788,1740469850352,-1000.0,0.00095,120]
[354396789,1740469850363,-500.0,0.00097,120]
[354396790,1740469850373,-500.0,0.000975,120]
[354396791,1740469850383,-1000.0,0.00099,120]
[354396792,1740469850393,-457.07572758,0.00099999,120]
[354396793,1740469850405,-500.0,0.00099999,31]
[354396794,1740469850415,-490.6146526,0.00099999,31]
[354396795,1740469850425,-500.0,0.00099999,31]
[354396796,1740469850436,-500.0,0.00099999,2]
[354396797,1740469850446,-273.44984564,0.00099999,120]
[354396798,1740469850455,-408.64249937,0.00099999,2]
[354396799,1740469850465,-350.0,0.001,120]
[354396800,1740469850479,-300.0,0.001,120]
[354396801,1740469850488,-4342.8384948,0.001,120]